bitfinex/quotes_BTCUSD_20230904
["timestamp","ask_amount","ask_price","bid_price","bid_amount"]
[1693797032965,0.2899909,26043.0,26042.0,0.65850678]
[1693797033136,0.2919909,26043.0,26042.0,0.69886678]
[1693797033305,0.2757109,26043.0,26042.0,0.69772678]
[1693797033508,0.2757109,26043.0,26042.0,0.58766678]
[1693797033715,0.2757109,26043.0,26042.0,0.51908678]
[1693797033912,0.2737109,26043.0,26042.0,0.21138]
[1693797034120,0.2704579,26043.0,26042.0,0.132]
[1693797034346,0.2718079,26043.0,26042.0,0.156]
[1693797034960,0.2718079,26043.0,26042.0,0.23016]
[1693797035162,0.2718079,26043.0,26042.0,0.2379]
[1693797035386,0.2718079,26043.0,26042.0,0.24168]
[1693797035595,0.2718079,26043.0,26042.0,0.63704678]
[1693797035818,0.2718079,26043.0,26042.0,0.64466678]
[1693797036023,0.004,26043.0,26042.0,0.65444678]
[1693797036239,0.004,26043.0,26042.0,0.65162678]
[1693797036444,0.004,26043.0,26042.0,0.90736678]
[1693797036654,0.004,26043.0,26042.0,1.20388678]
[1693797036860,0.004,26043.0,26042.0,1.20868678]
[1693797037067,10.96967967,26044.0,26042.0,1.19716678]
[1693797037320,10.96967967,26044.0,26043.0,0.47008678]
[1693797037532,10.96967967,26044.0,26043.0,0.58846678]
[1693797037727,10.96967967,26044.0,26043.0,0.66924862]
[1693797037935,10.96967967,26044.0,26043.0,0.67030415]
[1693797038165,10.97167967,26044.0,26043.0,0.67066415]
[1693797038373,10.97355767,26044.0,26043.0,0.66598415]
[1693797038534,10.97355767,26044.0,26043.0,0.67150415]
[1693797038732,10.96655767,26044.0,26043.0,0.67132415]
[1693797039031,10.96455767,26044.0,26043.0,2.47910957]
[1693797039233,10.96455767,26044.0,26043.0,2.61140957]
[1693797039513,10.96455767,26044.0,26043.0,3.04212957]
[1693797039731,10.96455767,26044.0,26043.0,3.28485349]
[1693797039960,10.96455767,26044.0,26043.0,3.28317349]
[1693797040168,10.96555767,26044.0,26043.0,3.29893349]
[1693797040391,10.96555767,26044.0,26043.0,3.29077349]
[1693797040606,10.96455767,26044.0,26043.0,3.25431881]
[1693797040812,10.96455767,26044.0,26043.0,4.83683743]
[1693797040813,10.96555767,26044.0,26043.0,4.83683743]
[1693797041037,9.15095744,26044.0,26043.0,4.43055743]
[1693797041243,9.15095744,26044.0,26043.0,3.83119743]
[1693797041460,9.15095744,26044.0,26043.0,4.30797743]
[1693797041690,9.14995744,26044.0,26043.0,4.33117363]
[1693797041902,9.14995744,26044.0,26043.0,4.30259139]
[1693797042136,9.15095744,26044.0,26043.0,4.34793139]
[1693797042344,9.15095744,26044.0,26043.0,4.37131139]
[1693797042559,9.15095744,26044.0,26043.0,4.37311139]
[1693797042767,9.15095744,26044.0,26043.0,4.39903139]
[1693797043013,9.15095744,26044.0,26043.0,4.76031139]
[1693797043256,8.66695744,26044.0,26043.0,4.76031139]
[1693797043714,8.18311026,26044.0,26043.0,4.76031139]
[1693797043928,8.16311026,26044.0,26043.0,4.76031139]
[1693797044360,8.16311026,26044.0,26043.0,4.48383139]
[1693797044608,8.16311026,26044.0,26043.0,4.76022691]
[1693797044814,7.67911026,26044.0,26043.0,4.76022691]
[1693797045029,7.64848721,26044.0,26043.0,4.76022691]
[1693797045232,7.61212181,26044.0,26043.0,4.76022691]
[1693797045646,7.59212181,26044.0,26043.0,4.73522691]
[1693797045853,7.59212181,26044.0,26043.0,4.75984952]
[1693797046316,7.59112181,26044.0,26043.0,4.73484952]
[1693797046690,7.10712181,26044.0,26043.0,4.75984952]
[1693797047103,7.07983226,26044.0,26043.0,4.70984952]
[1693797047533,7.07983226,26044.0,26043.0,4.75984952]
[1693797047897,7.07983226,26044.0,26043.0,4.75979369]
[1693797049750,6.49962932,26044.0,26043.0,4.75979369]
[1693797049950,6.41608268,26044.0,26043.0,4.75979369]
[1693797050156,6.18564249,26044.0,26043.0,4.75979369]
[1693797050400,4.77504612,26044.0,26043.0,5.25979369]
[1693797050580,3.63206802,26044.0,26043.0,5.38732059]
[1693797050763,3.63206802,26044.0,26043.0,5.47731702]
[1693797051136,2.85745065,26044.0,26043.0,5.36232059]
[1693797051499,2.84587065,26044.0,26043.0,5.45306166]
[1693797051704,2.36187065,26044.0,26043.0,5.45306166]
[1693797051864,0.1896,26061.0,26056.0,0.9]
[1693797052065,0.1896,26061.0,26056.0,1.89483749]
[1693797052384,0.06,26063.0,26056.0,3.98405046]
[1693797052611,0.4068,26063.0,26056.0,4.18808138]
[1693797052792,0.4068,26063.0,26056.0,4.03589067]
[1693797053005,0.4068,26063.0,26056.0,4.72635067]
[1693797053229,0.0199,26069.0,26056.0,4.72779067]
[1693797053439,0.0199,26069.0,26067.0,0.38708678]
[1693797053645,0.25773471,26068.0,26067.0,0.68708678]
[1693797053846,0.1829,26068.0,26067.0,0.47796284]
[1693797054043,0.45846212,26068.0,26067.0,0.47796284]
[1693797054265,0.45846212,26068.0,26067.0,0.30046284]
[1693797054459,0.45346212,26068.0,26067.0,0.00046284]
[1693797054885,0.06,26067.0,26066.0,0.43140069]
[1693797055019,0.06,26066.0,26065.0,0.1055]
[1693797055223,0.06,26066.0,26060.0,0.06822]
[1693797055224,0.06,26064.0,26060.0,0.06822]
[1693797055424,0.226,26066.0,26058.0,0.08922]
[1693797055425,0.06,26059.0,26058.0,0.08922]
[1693797055625,0.06,26059.0,26058.0,0.1765]
[1693797055626,0.23483471,26059.0,26058.0,0.1765]
[1693797056316,0.08,26059.0,26058.0,0.1765]
[1693797056525,0.08,26059.0,26058.0,0.86367307]
[1693797056734,0.37621208,26059.0,26058.0,0.16367307]
[1693797056937,0.06,26058.0,26057.0,0.1597]
[1693797057147,0.143,26058.0,26057.0,0.1597]
[1693797057912,0.06,26058.0,26057.0,0.1597]
[1693797058114,0.06,26058.0,26057.0,0.3277]
[1693797058115,0.17,26058.0,26057.0,0.3277]
[1693797058321,0.17,26058.0,26057.0,0.6277]
[1693797059125,0.17,26058.0,26057.0,1.10634678]
[1693797059126,0.06,26058.0,26057.0,1.10634678]
[1693797059341,0.06,26058.0,26057.0,1.12906678]
[1693797059557,0.33174469,26058.0,26057.0,0.6527]
[1693797059875,0.44174469,26058.0,26057.0,0.6527]
[1693797060028,0.44174469,26058.0,26057.0,0.5097]
[1693797062406,0.06,26055.0,26051.0,0.0771]
[1693797062608,0.15483471,26054.0,26053.0,0.7]
[1693797062807,0.06,26052.0,26050.0,0.164]
[1693797063016,0.11,26051.0,26050.0,0.164]
[1693797063218,0.26483471,26051.0,26050.0,0.164]
[1693797063429,0.11,26051.0,26050.0,0.23978]
[1693797063626,0.11,26051.0,26050.0,0.93726]
[1693797063855,0.11,26051.0,26050.0,0.93714]
[1693797064030,0.11,26051.0,26050.0,0.96708]
[1693797064331,0.114,26051.0,26050.0,0.30778]
[1693797064581,0.35068164,26051.0,26050.0,0.25818]
[1693797064784,0.35068164,26051.0,26050.0,0.189]
[1693797064785,0.41068164,26051.0,26050.0,0.189]
[1693797065400,0.40868164,26051.0,26050.0,0.164]
[1693797065842,0.41068164,26051.0,26050.0,0.189]
[1693797066021,0.35068164,26051.0,26050.0,0.189]
[1693797066225,0.45068164,26051.0,26050.0,0.189]
[1693797066642,0.43068164,26051.0,26050.0,0.189]
[1693797066863,0.192,26051.0,26050.0,0.25668]
[1693797067076,0.002,26051.0,26050.0,1.83513749]
[1693797067282,0.004,26051.0,26050.0,1.95352678]
[1693797067487,0.004,26051.0,26050.0,1.99958298]
[1693797067692,0.004,26051.0,26050.0,1.99394298]
[1693797067899,0.004,26051.0,26050.0,1.99538298]
[1693797068106,0.002,26051.0,26050.0,1.96810298]
[1693797068310,0.002,26051.0,26050.0,1.99106298]
[1693797068513,0.1654,26055.0,26050.0,1.94526298]
[1693797068722,0.1654,26055.0,26051.0,0.38708678]
[1693797068930,0.1654,26055.0,26052.0,0.4065]
[1693797069138,0.3757,26057.0,26053.0,0.55108678]
[1693797069342,0.3757,26057.0,26054.0,0.3]
[1693797069556,0.11,26057.0,26055.0,0.49358678]
[1693797069765,0.11,26057.0,26056.0,0.3]
[1693797069996,0.11,26057.0,26056.0,0.78806678]
[1693797070201,0.11,26057.0,26056.0,0.86095908]
[1693797070410,0.19,26057.0,26056.0,0.1626523]
[1693797070614,0.19,26057.0,26056.0,0.0726523]
[1693797070615,0.21,26057.0,26056.0,0.0726523]
[1693797070828,0.43655597,26057.0,26056.0,0.0726523]
[1693797071251,0.43655597,26057.0,26056.0,0.015]
[1693797071877,0.21,26057.0,26056.0,0.015]
[1693797072290,0.21,26057.0,26056.0,0.028]
[1693797072702,0.49990169,26057.0,26056.0,0.028]
[1693797073313,0.27,26057.0,26056.0,0.028]
[1693797073518,0.38,26057.0,26056.0,0.028]
[1693797073928,0.76708678,26057.0,26056.0,0.028]
[1693797074130,0.02,26053.0,26045.0,0.12462]
[1693797074332,0.11,26049.0,26046.0,1.19760678]
[1693797074548,0.11,26049.0,26048.0,0.1645]
[1693797074962,0.11,26049.0,26048.0,0.318047]
[1693797075591,0.11,26049.0,26048.0,0.715847]
[1693797075801,0.11,26051.0,26048.0,1.13527378]
[1693797076008,0.11,26051.0,26049.0,0.68708678]
[1693797076218,0.11,26051.0,26049.0,0.79658678]
[1693797076427,0.11,26051.0,26050.0,0.0897]
[1693797076651,0.11,26051.0,26050.0,0.09252]
[1693797076849,0.11,26051.0,26050.0,0.09144]
[1693797077063,0.111,26051.0,26050.0,0.09228]
[1693797077261,0.11,26051.0,26050.0,0.09114]
[1693797077469,0.11,26051.0,26050.0,0.09426]
[1693797077684,0.111,26051.0,26050.0,0.51792678]
[1693797077886,0.111,26051.0,26050.0,0.81696678]
[1693797078090,0.111,26051.0,26050.0,0.81804678]
[1693797078298,0.112,26051.0,26050.0,0.83810678]
[1693797078507,0.112,26051.0,26050.0,0.83228678]
[1693797078710,0.112,26051.0,26050.0,0.82760678]
[1693797078859,0.112,26051.0,26050.0,0.82016678]
[1693797079062,0.112,26051.0,26050.0,0.72908678]
[1693797079266,0.112,26051.0,26050.0,0.342]
[1693797080049,0.112,26051.0,26050.0,0.94718678]
[1693797080050,0.002,26051.0,26050.0,0.94718678]
[1693797080287,0.002,26051.0,26050.0,0.94742678]
[1693797080532,0.002,26051.0,26050.0,0.96368678]
[1693797080756,0.002,26051.0,26050.0,1.15875369]
[1693797080966,0.002,26051.0,26050.0,1.98256298]
[1693797081138,0.002,26051.0,26050.0,1.89184298]
[1693797081343,0.002,26051.0,26050.0,1.89136298]
[1693797081516,0.002,26051.0,26050.0,2.00893057]
[1693797081730,0.001,26051.0,26050.0,1.97009057]
[1693797081939,0.001,26051.0,26050.0,1.89896298]
[1693797082166,0.001,26051.0,26050.0,1.87100298]
[1693797082297,0.11,26054.0,26050.0,1.85206678]
[1693797082505,0.11,26054.0,26052.0,0.1645]
[1693797082898,0.11,26054.0,26053.0,0.3]
[1693797083071,0.11,26054.0,26053.0,0.38772]
[1693797083372,0.11,26054.0,26053.0,0.50046]
[1693797083603,0.11,26054.0,26053.0,0.52134]
[1693797083813,0.23,26057.0,26053.0,1.77270678]
[1693797084019,0.23,26057.0,26053.0,1.89321749]
[1693797084237,0.23,26057.0,26055.0,0.1645]
[1693797084655,0.23,26057.0,26056.0,0.07176]
[1693797084917,0.23,26057.0,26056.0,0.14262936]
[1693797085119,0.23,26057.0,26056.0,0.14676936]
[1693797085337,0.23,26057.0,26056.0,0.15378936]
[1693797085545,0.23,26057.0,26056.0,0.15174936]
[1693797085761,0.23,26057.0,26056.0,0.15276936]
[1693797085984,0.23,26057.0,26056.0,0.16064936]
[1693797086186,0.23,26057.0,26056.0,0.19666936]
[1693797086391,0.23,26057.0,26056.0,0.19846936]
[1693797086596,0.23,26057.0,26056.0,0.19822936]
[1693797086803,0.23,26057.0,26056.0,0.19444936]
[1693797087003,0.23,26057.0,26056.0,0.34411336]
[1693797087211,0.19,26057.0,26056.0,0.34621336]
[1693797087451,0.23,26057.0,26056.0,0.34597336]
[1693797087649,0.23,26057.0,26056.0,0.34543336]
[1693797087866,0.23,26057.0,26056.0,0.34609336]
[1693797088062,0.23,26057.0,26056.0,0.34723336]
[1693797088285,0.17,26057.0,26056.0,0.34657336]
[1693797088519,0.13,26057.0,26056.0,0.35197336]
[1693797088722,0.13,26057.0,26056.0,1.05095336]
[1693797088924,0.13,26057.0,26056.0,1.05149336]
[1693797089127,0.17,26057.0,26056.0,1.05347336]
[1693797089338,0.17,26057.0,26056.0,1.15265336]
[1693797089542,0.13,26062.0,26056.0,2.00276014]
[1693797089786,0.04,26064.0,26056.0,2.00276014]
[1693797089787,0.11,26064.0,26057.0,0.82883749]
[1693797089983,0.3453,26066.0,26059.0,0.271]
[1693797089984,0.3852,26066.0,26059.0,0.271]
[1693797090218,0.11,26064.0,26060.0,0.82883749]
[1693797090411,0.0549,26068.0,26062.0,0.271]
[1693797090412,0.0149,26068.0,26062.0,0.271]
[1693797090635,0.0149,26068.0,26063.0,0.82883749]
[1693797090886,0.0149,26068.0,26065.0,0.271]
[1693797090887,0.11,26066.0,26065.0,0.271]
[1693797091083,0.11,26066.0,26065.0,0.95808678]
[1693797091284,0.11,26066.0,26065.0,1.06632678]
[1693797091490,0.11,26066.0,26065.0,1.06614678]
[1693797091695,0.11,26066.0,26065.0,1.06632678]
[1693797091897,0.11,26066.0,26065.0,1.07838678]
[1693797092099,0.1249,26068.0,26065.0,1.08222678]
[1693797092293,0.1249,26068.0,26066.0,0.68708678]
[1693797092562,0.1249,26068.0,26066.0,0.40914]
[1693797092762,0.1249,26068.0,26067.0,0.078]
[1693797092965,0.1249,26068.0,26067.0,0.07938]
[1693797093169,0.1249,26068.0,26067.0,0.1005]
[1693797093390,0.1249,26068.0,26067.0,0.10362]
[1693797093603,0.1249,26068.0,26067.0,0.10968]
[1693797093807,0.1249,26068.0,26067.0,0.16337262]
[1693797094024,0.1249,26068.0,26067.0,0.226043]
[1693797094225,0.1249,26068.0,26067.0,0.153443]
[1693797094435,0.1249,26068.0,26067.0,0.163443]
[1693797095070,0.1249,26068.0,26067.0,0.53028308]
[1693797095295,0.1249,26068.0,26067.0,0.53640308]
[1693797095505,0.1249,26068.0,26067.0,1.27116308]
[1693797095712,0.1249,26068.0,26067.0,1.26128308]
[1693797095885,0.0149,26068.0,26067.0,1.55440308]
[1693797096182,0.0149,26068.0,26067.0,1.58980308]
[1693797096390,0.0149,26068.0,26067.0,1.47121638]
[1693797096604,0.28310657,26068.0,26067.0,1.49471638]
[1693797096822,0.28310657,26068.0,26067.0,1.025]
[1693797097029,0.16973471,26068.0,26067.0,0.725]
[1693797097277,0.16973471,26068.0,26067.0,0.75]
[1693797097278,0.1349,26068.0,26067.0,0.75]
[1693797097490,0.37864224,26068.0,26067.0,0.725]
[1693797097694,0.1349,26068.0,26067.0,0.6290933]
[1693797097903,0.1349,26068.0,26067.0,0.6540933]
[1693797098110,0.1349,26068.0,26067.0,0.05]
[1693797098315,0.1349,26068.0,26067.0,0.025]
[1693797098734,0.1349,26068.0,26067.0,0.042]
[1693797098947,0.34517668,26068.0,26065.0,0.1105933]
[1693797099151,0.11,26066.0,26065.0,0.1105933]
[1693797099352,0.109912,26066.0,26065.0,0.1105933]
[1693797099689,0.109912,26066.0,26065.0,0.17935504]
[1693797100108,0.109912,26066.0,26065.0,0.0834442]
[1693797100723,0.46497709,26066.0,26065.0,0.0834442]
[1693797101589,0.46497709,26066.0,26065.0,0.06876174]
[1693797101590,0.46697709,26066.0,26065.0,0.06876174]
[1693797101959,0.46697709,26066.0,26060.0,0.35473014]
[1693797102259,0.11,26062.0,26061.0,0.258971]
[1693797103385,0.112,26062.0,26061.0,0.18805455]
[1693797103610,0.112,26062.0,26061.0,0.55813455]
[1693797103802,0.112,26062.0,26061.0,0.50088]
[1693797104145,0.112,26062.0,26061.0,0.4305]
[1693797104389,0.112,26062.0,26061.0,0.325]
[1693797104390,0.35902521,26062.0,26061.0,0.325]
[1693797104796,0.36002521,26062.0,26061.0,0.35]
[1693797105006,0.173,26062.0,26061.0,0.05]
[1693797105246,0.64008678,26062.0,26061.0,0.05]
[1693797105630,0.77008678,26062.0,26061.0,0.05]
[1693797106172,0.65808678,26062.0,26061.0,0.025]
[1693797106485,0.65808678,26062.0,26053.0,0.0771]
[1693797106486,0.06,26059.0,26053.0,0.0771]
[1693797106692,0.11,26055.0,26054.0,0.7]
[1693797106913,0.13,26057.0,26054.0,1.08708678]
[1693797107123,0.28483471,26057.0,26054.0,1.08708678]
[1693797107325,0.13,26057.0,26054.0,1.08708678]
[1693797107527,0.13,26057.0,26054.0,1.15524678]
[1693797107788,0.13,26057.0,26055.0,0.38708678]
[1693797107985,0.13,26057.0,26055.0,0.49640678]
[1693797107986,0.11,26057.0,26055.0,0.49640678]
[1693797108209,0.02,26057.0,26056.0,0.19906]
[1693797108414,0.13,26057.0,26056.0,0.49308678]
[1693797108615,0.13,26057.0,26055.0,0.07242]
[1693797108616,0.131,26057.0,26054.0,0.724]
[1693797108955,0.11,26055.0,26054.0,1.21708678]
[1693797109084,0.11,26055.0,26054.0,1.24008678]
[1693797109283,0.11,26055.0,26054.0,1.60535578]
[1693797109838,0.022,26057.0,26054.0,1.68629578]
[1693797110059,0.021,26057.0,26055.0,0.38708678]
[1693797110276,0.001,26055.0,26054.0,1.194269]
[1693797111013,0.001,26055.0,26054.0,1.268189]
[1693797111228,0.001,26055.0,26054.0,1.194269]
[1693797111620,0.001,26055.0,26054.0,1.269569]
[1693797111825,0.001,26055.0,26054.0,1.269509]
[1693797112091,0.002,26055.0,26054.0,1.293389]
[1693797112288,0.002,26055.0,26054.0,1.290209]
[1693797112532,0.002,26055.0,26054.0,1.218269]
[1693797113384,0.002,26055.0,26054.0,0.518269]
[1693797114426,0.002,26055.0,26054.0,0.412269]
[1693797114631,0.23794766,26055.0,26054.0,0.412269]
[1693797116562,0.29794766,26055.0,26054.0,0.112269]
[1693797117383,0.29694766,26055.0,26054.0,0.088269]
[1693797117797,0.29894766,26055.0,26054.0,0.112269]
[1693797118218,0.29594766,26055.0,26054.0,0.065269]
[1693797118423,0.29594766,26055.0,26054.0,0.078269]
[1693797118633,0.37594766,26055.0,26054.0,0.078269]
[1693797118844,0.52708678,26055.0,26054.0,0.078269]
[1693797119249,0.52708678,26055.0,26054.0,0.007]
[1693797119427,0.54708678,26055.0,26054.0,0.0702984]
[1693797119629,0.78888614,26055.0,26054.0,0.0762984]
[1693797119828,0.78888614,26055.0,26054.0,0.007]
[1693797120045,0.78888614,26055.0,26047.0,0.36528]
[1693797120046,0.08,26054.0,26047.0,0.36528]
[1693797120258,0.11,26049.0,26048.0,0.7]
[1693797120466,0.11,26049.0,26048.0,0.76335526]
[1693797120675,0.11,26049.0,26048.0,0.36335526]
[1693797122468,0.11,26049.0,26048.0,0.36935526]
[1693797123115,0.11,26049.0,26048.0,0.37635526]
[1693797123773,0.11,26049.0,26048.0,1.07635526]
[1693797124211,0.11,26052.0,26048.0,1.56916204]
[1693797124419,0.02,26052.0,26049.0,0.68708678]
[1693797124623,0.02,26052.0,26050.0,0.1065]
[1693797124833,0.02,26052.0,26050.0,0.89512]
[1693797125044,0.02,26052.0,26050.0,0.89056]
[1693797125236,0.02,26052.0,26050.0,0.8854]
[1693797125499,0.02,26052.0,26050.0,0.87952]
[1693797125719,0.021,26052.0,26050.0,0.87928]
[1693797125922,0.02,26052.0,26050.0,0.88138]
[1693797126127,0.02,26052.0,26050.0,0.88108]
[1693797126315,0.021,26052.0,26050.0,0.8949]
[1693797126581,0.021,26052.0,26050.0,0.89454]
[1693797126793,0.11,26051.0,26050.0,0.89376]
[1693797127006,0.38891268,26051.0,26050.0,0.714]
[1693797127210,0.38891268,26051.0,26050.0,0.728]
[1693797127411,0.11,26051.0,26050.0,0.728]
[1693797127615,0.11,26051.0,26050.0,0.714]
[1693797127818,0.35723254,26051.0,26050.0,0.728]
[1693797128027,0.35823254,26051.0,26050.0,0.728]
[1693797128236,0.111,26051.0,26050.0,0.728]
[1693797128387,0.111,26051.0,26050.0,0.714]
[1693797128774,0.112,26051.0,26050.0,0.728]
[1693797128976,0.112,26051.0,26050.0,0.028]
[1693797129230,0.32939206,26051.0,26050.0,0.028]
[1693797129938,0.172,26051.0,26050.0,0.08969174]
[1693797130141,0.40304681,26051.0,26050.0,0.08969174]
[1693797130514,0.40304681,26051.0,26050.0,0.07569174]
[1693797130729,0.40204681,26051.0,26050.0,0.07569174]
[1693797131357,0.40304681,26051.0,26050.0,0.08969174]
[1693797131566,0.40204681,26051.0,26050.0,0.07569174]
[1693797131759,0.41504681,26051.0,26050.0,0.07769174]
[1693797132358,0.41404681,26051.0,26050.0,0.06369174]
[1693797132539,0.42804681,26051.0,26050.0,0.06569174]
[1693797133179,0.197,26051.0,26050.0,0.06569174]
[1693797135858,0.41985221,26051.0,26050.0,0.06369174]
[1693797136061,0.42285221,26051.0,26050.0,0.06369174]
[1693797136284,0.67308678,26051.0,26050.0,0.06369174]
[1693797136740,0.67008678,26051.0,26050.0,0.06369174]
[1693797136947,0.67308678,26051.0,26050.0,0.002]
[1693797137507,0.02,26050.0,26046.0,0.00154643]
[1693797137711,0.13,26047.0,26046.0,0.00154643]
[1693797137911,0.17,26047.0,26046.0,0.00154643]
[1693797138988,0.17,26047.0,26046.0,0.00654643]
[1693797139206,0.17,26047.0,26046.0,0.01154643]
[1693797139646,0.4694856,26047.0,26046.0,0.00654643]
[1693797140061,0.4694856,26047.0,26046.0,0.01154643]
[1693797140435,0.4694856,26047.0,26046.0,0.00654643]
[1693797140651,0.4694856,26047.0,26046.0,0.00154643]
[1693797140853,0.4914856,26047.0,26046.0,0.00354643]
[1693797141967,0.4914856,26047.0,26046.0,0.002]
[1693797142402,0.5114856,26047.0,26046.0,0.002]
[1693797142611,0.4914856,26047.0,26046.0,0.002]
[1693797144294,0.67908678,26047.0,26046.0,0.002]
[1693797145126,0.67829078,26047.0,26046.0,0.002]
[1693797145342,0.67813178,26047.0,26046.0,0.002]
[1693797145722,0.89191926,26047.0,26046.0,0.002]
[1693797146172,0.67813178,26047.0,26046.0,0.002]
[1693797146600,0.019045,26041.0,26039.0,0.1868]
[1693797146810,0.26483471,26040.0,26038.0,0.0919551]
[1693797147030,0.26483471,26040.0,26038.0,0.3919551]
[1693797147243,0.26483471,26040.0,26038.0,0.60640649]
[1693797147244,0.11,26040.0,26038.0,0.60640649]
[1693797147662,0.11,26040.0,26038.0,0.60532649]
[1693797147868,0.11,26040.0,26038.0,0.60454649]
[1693797148077,0.111,26040.0,26038.0,0.62852649]
[1693797148285,0.111,26040.0,26038.0,0.62060649]
[1693797148493,0.111,26040.0,26039.0,0.025]
[1693797148913,0.130045,26040.0,26039.0,0.025]
[1693797149119,0.130045,26040.0,26038.0,0.02626751]
[1693797149540,0.130045,26040.0,26038.0,0.09346751]
[1693797149750,0.131045,26040.0,26038.0,0.11870751]
[1693797149958,0.131045,26040.0,26038.0,0.09358751]
[1693797149959,0.130045,26040.0,26038.0,0.09358751]
[1693797150168,0.130045,26040.0,26038.0,0.09334751]
[1693797150382,0.130045,26040.0,26039.0,0.025]
[1693797150383,0.131045,26040.0,26039.0,0.025]
[1693797150591,0.130045,26040.0,26038.0,0.02626751]
[1693797150808,0.131045,26040.0,26038.0,0.05126751]
[1693797151232,0.130045,26040.0,26038.0,0.02626751]
[1693797152708,0.131045,26040.0,26038.0,0.05126751]
[1693797153197,0.0826,26039.0,26038.0,0.05126751]
[1693797153826,0.0826,26039.0,26038.0,0.10837143]
[1693797154055,0.0826,26039.0,26038.0,0.17353143]
[1693797154270,0.0826,26039.0,26038.0,0.12431143]
[1693797154490,0.0836,26039.0,26038.0,0.14931143]
[1693797154701,0.0846,26039.0,26038.0,0.17515143]
[1693797154906,0.0846,26039.0,26038.0,0.10837143]
[1693797155955,0.0846,26039.0,26038.0,0.17959143]
[1693797156167,0.0846,26039.0,26038.0,0.18199143]
[1693797156370,0.0846,26039.0,26038.0,0.18223143]
[1693797156582,0.0846,26039.0,26038.0,0.18865143]
[1693797156809,0.0846,26039.0,26038.0,0.18799143]
[1693797157026,0.0846,26039.0,26038.0,0.18667143]
[1693797157237,0.0846,26039.0,26038.0,0.19027143]
[1693797157454,0.0846,26039.0,26038.0,0.19351143]
[1693797157669,0.0846,26039.0,26038.0,0.89777143]
[1693797157881,0.0846,26039.0,26038.0,0.89903143]
[1693797158098,0.0846,26039.0,26038.0,0.89777143]
[1693797158335,0.0846,26039.0,26038.0,0.89351143]
[1693797158542,0.0846,26039.0,26038.0,0.89321143]
[1693797158746,0.0846,26039.0,26038.0,0.88733143]
[1693797158954,0.0846,26039.0,26038.0,0.87869143]
[1693797159159,0.0846,26039.0,26038.0,0.10837143]
[1693797160205,0.0836,26039.0,26038.0,0.08337143]
[1693797160409,0.0826,26039.0,26038.0,0.05837143]
[1693797160619,0.0846,26039.0,26038.0,0.10837143]
[1693797160831,0.0836,26039.0,26038.0,0.08337143]
[1693797161091,0.0946,26039.0,26038.0,0.05937143]
[1693797161516,0.1056,26039.0,26038.0,0.06037143]
[1693797161728,0.1056,26039.0,26038.0,0.13063143]
[1693797161950,0.1056,26039.0,26038.0,0.12793143]
[1693797162189,0.1056,26039.0,26038.0,0.12607143]
[1693797162396,0.1056,26039.0,26038.0,0.06037143]
[1693797163396,0.1056,26039.0,26038.0,0.12925143]
[1693797163607,0.1056,26039.0,26038.0,0.12979143]
[1693797163802,0.1056,26039.0,26038.0,0.12799143]
[1693797164014,0.1056,26039.0,26038.0,0.06037143]
[1693797164711,0.1056,26039.0,26038.0,0.12595143]
[1693797164880,0.1056,26039.0,26038.0,0.12487143]
[1693797165113,0.1056,26039.0,26038.0,0.13159143]
[1693797165319,0.1056,26039.0,26038.0,0.14443143]
[1693797165526,0.1056,26039.0,26038.0,0.14137143]
[1693797165676,0.1056,26039.0,26038.0,0.14083143]
[1693797165885,0.1056,26039.0,26038.0,0.14797143]
[1693797166136,0.1056,26039.0,26038.0,0.14347143]
[1693797166432,0.1056,26039.0,26038.0,0.14329143]
[1693797166636,0.1056,26039.0,26038.0,0.13837143]
[1693797166860,0.1056,26039.0,26038.0,0.13705143]
[1693797167066,0.1056,26039.0,26038.0,0.13699143]
[1693797167480,0.1056,26039.0,26038.0,0.13513143]
[1693797167685,0.1056,26039.0,26038.0,0.13213143]
[1693797167895,0.1056,26039.0,26038.0,0.13351143]
[1693797168317,0.1056,26039.0,26038.0,0.14065143]
[1693797168520,0.1056,26039.0,26038.0,0.13783143]
[1693797168755,0.1056,26039.0,26038.0,0.06037143]
[1693797169372,0.37730014,26039.0,26038.0,0.06037143]
[1693797169749,0.41634514,26039.0,26038.0,0.06037143]
[1693797180796,0.41634514,26039.0,26038.0,0.05910392]
[1693797184262,0.41634514,26039.0,26034.0,0.11102203]
[1693797184263,0.039045,26035.0,26034.0,0.11102203]
[1693797184461,0.27647971,26035.0,26034.0,0.019998]
[1693797184616,0.121645,26035.0,26034.0,0.019998]
[1693797185934,0.121645,26035.0,26034.0,0.026998]
[1693797186340,0.121645,26035.0,26034.0,0.019998]
[1693797186539,0.122645,26035.0,26034.0,0.019998]
[1693797187578,0.123645,26035.0,26034.0,0.019998]
[1693797190841,0.123645,26035.0,26034.0,0.11102203]
[1693797191058,0.123645,26035.0,26034.0,0.019998]
[1693797191875,0.123645,26035.0,26034.0,0.0785934]
[1693797192080,0.123645,26035.0,26034.0,0.16961743]
[1693797192289,0.123645,26035.0,26034.0,0.0785934]
[1693797196162,0.123645,26035.0,26034.0,0.0735934]
[1693797203493,0.3774102,26035.0,26034.0,0.0735934]
[1693797211032,0.76449698,26035.0,26034.0,0.0735934]
[1693797213815,0.84709698,26035.0,26034.0,0.0735934]
[1693797214618,0.039045,26031.0,26029.0,0.11102203]
[1693797214834,0.039045,26031.0,26029.0,0.019998]
[1693797214835,0.121645,26030.0,26029.0,0.019998]
[1693797216285,0.122645,26030.0,26029.0,0.11820448]
[1693797216760,0.122645,26030.0,26029.0,0.026998]
[1693797217161,0.122645,26030.0,26029.0,0.11820448]
[1693797217976,0.123645,26030.0,26029.0,0.12520448]
[1693797221367,0.123645,26030.0,26029.0,0.10020448]
[1693797221640,0.37264981,26030.0,26029.0,0.10020448]